fUSD/lending_fUSD_20240403
["ID","MTS","AMOUNT","RATE_DAILY","PERIOD"]
[321404244,1712142631643,-150.0,0.00023441,2]
[321404246,1712142631654,-150.0,0.00023441,2]
[321404248,1712142631664,-150.0,0.00023441,2]
[321404249,1712142631675,-6673.37,0.00023442,2]
[321404250,1712142631684,-500.0,0.00023445,2]
[321404251,1712142631694,-86.61321138,0.00023456,2]
[321404252,1712142631719,-1671.60678862,0.00023456,2]
[321404253,1712142631729,-174.15,0.00023474,2]
[321404254,1712142631738,-150.0,0.00023503,2]
[321404255,1712142631748,-697.86,0.00023513,2]
[321404256,1712142631757,-250.0,0.00023531,2]
[321404257,1712142631767,-150.99,0.00023531,2]
[321404258,1712142631776,-250.0,0.00023535,2]
[321404259,1712142631785,-800.0,0.00023563,2]
[321404260,1712142631795,-499.99,0.00023563,2]
[321404261,1712142631804,-191.49,0.00023598,2]
[321404262,1712142631813,-2766.63,0.000236,2]
[321404263,1712142631823,-16897.88038173,0.00023731,2]
[321404264,1712142631843,-7002.11961827,0.00023731,2]
[321404265,1712142631853,-442.04,0.00023747,2]
[321404266,1712142631862,-150.33,0.00023787,2]
[321404267,1712142631871,-158.75,0.00023841,2]
[321404268,1712142631881,-174.59,0.00023994,2]
[321404269,1712142631891,-2130.802437,0.00024,2]
[321404270,1712142631909,-13224.96760398,0.00024,2]
[321404271,1712142631920,-1021.8316,0.00024,2]
[321404272,1712142631935,-1648.67536,0.00024,2]
[321404273,1712142631958,-954.90173342,0.00024,2]
[321404274,1712142631969,-876.90956025,0.00024,2]
[321404275,1712142631981,-171.05339521,0.00024,2]
[321404276,1712142631991,-200.0,0.00024175,2]
[321404277,1712142632001,-1084.63,0.00024327,2]
[321404278,1712142632010,-6717.21048974,0.00024681,2]
[321404280,1712142632022,-6591.0845,0.00024681,2]
[321404331,1712142637689,-7209.9559328,0.00024681,2]
[321404341,1712142637817,-714.41811308,0.00024681,2]
[321404342,1712142637830,-12458.26763096,0.00024681,2]
[321404343,1712142637989,-9391.06333342,0.00024681,2]
[321404344,1712142637998,-171.0,0.00024681,2]
[321404345,1712142638007,-2188.154,0.00024681,2]
[321404346,1712142638017,-3588.0,0.00024681,2]
[321404347,1712142638027,-1050.0,0.00024734,2]
[321404348,1712142638037,-15429.15182109,0.00024734,2]
[321404349,1712142638047,-2301.36467321,0.00024734,2]
[321404350,1712142638056,-8837.572335,0.00024734,2]
[321404351,1712142638065,-287.53386216,0.00024734,2]
[321404352,1712142638075,-155.0,0.00024734,2]
[321404353,1712142638084,-727.18578,0.0002475,2]
[321404354,1712142638094,-500.0,0.000248,2]
[321404355,1712142638103,-1751.48378118,0.000248,2]
[321404356,1712142638112,-1751.48378111,0.00024811,2]
[321404357,1712142638122,-150.0,0.00024812,2]
[321404359,1712142638131,-1751.48378111,0.00024822,2]
[321404361,1712142638141,-191.49,0.00024827,2]
[321404363,1712142638150,-1751.48378111,0.00024833,2]
[321404364,1712142638159,-1751.48378111,0.00024844,2]
[321404366,1712142638168,-1751.48378111,0.00024856,2]
[321404369,1712142638179,-1751.48378111,0.00024867,2]
[321404371,1712142638191,-1751.48378111,0.00024878,2]
[321404373,1712142638200,-5304.5219,0.0002488,2]
[321404375,1712142638209,-1751.48378111,0.00024889,2]
[321404377,1712142638219,-665.567,0.000249,2]
[321404378,1712142638228,-6500.0,0.000249,2]
[321404381,1712142638241,-1258.21616558,0.000249,2]
[321404383,1712142638250,-151.5882583,0.000249,2]
[321404385,1712142638259,-1751.48378111,0.000249,2]
[321404386,1712142638270,-309.68145612,0.000249,2]
[321404388,1712142638279,-2418.12,0.0002498,2]
[321404391,1712142638293,-328.59490813,0.00024997,2]
[321404393,1712142638303,-407.02931558,0.00024998,2]
[321404395,1712142638312,-845.66572639,0.00024998,2]
[321404397,1712142638323,-199.54133712,0.00024998,2]
[321404399,1712142638332,-3071.96048349,0.00024998,2]
[321404401,1712142638342,-226.11603369,0.00024999,2]
[321404403,1712142638351,-2632.48931003,0.00024999,2]
[321404405,1712142638360,-885.08990445,0.00024999,2]
[321404407,1712142638370,-327725.63802063,0.00024999,2]
[321404409,1712142638379,-50000.0,0.00025,2]
[321404411,1712142638389,-50000.0,0.00025,2]
[321404413,1712142638398,-50000.0,0.00025,2]
[321404415,1712142638408,-50000.0,0.00025,2]
[321404417,1712142638417,-50000.0,0.00025,2]
[321404419,1712142638426,-50000.0,0.00025,2]
[321404421,1712142638440,-50000.0,0.00025,2]
[321404423,1712142638449,-50000.0,0.00025,2]
[321404425,1712142638459,-217824.32517295,0.00025,2]
[321404427,1712142638468,-1894411.88898566,0.00025,2]
[321404437,1712142638958,-15909.14365235,0.00025,2]
[321404442,1712142639892,-1499.99206395,0.00025,2]
[321404443,1712142639908,-1217.2557631,0.00025,2]
[321404459,1712142642762,-263.773,0.00025,2]
[321404460,1712142642781,-2974.19748924,0.00025,2]
[321404461,1712142642802,-4344.20009879,0.00025,2]
[321404462,1712142642817,-745.32453499,0.00025,2]
[321404463,1712142643064,-4323.526978,0.00025,2]
[321404475,1712142645581,-328.5,0.00024999,2]
[321404476,1712142645816,-516.35854516,0.00024999,2]
[321404477,1712142645826,-2704.95059228,0.00025,2]
[321404478,1712142645838,-65850.99999997,0.00025,2]
[321404479,1712142645850,-89680.80904689,0.00025,2]
[321404480,1712142645882,-4353.59468027,0.00025,2]
[321404481,1712142645893,-6603.2,0.00025,2]
[321404484,1712142919022,2193.46681655,0.0004,30]
[321404487,1712143249269,156.29768644,0.000399,48]
[321404488,1712143639104,-500.0,0.00021554,2]
[321404489,1712143639125,-868.77062815,0.00021555,2]
[321404490,1712143639147,-435.93,0.00021556,2]
[321404491,1712143639169,-155.19232694,0.00022498,2]
[321404492,1712143639189,-150.0,0.00023393,2]
[321404493,1712143639211,-3660.19095473,0.00023394,2]
[321404503,1712143831744,-199.56493157,0.00021984,2]
[321404505,1712143831753,-630.52195941,0.00021984,2]
[321404528,1712143832293,-659.01915862,0.00021984,2]
[321404529,1712143832303,-132.22906523,0.00021985,2]
[321404530,1712143832351,-330.79,0.00021985,2]
[321404531,1712143832449,-36.98093477,0.00021985,2]
[321404532,1712143832458,-983.27087812,0.00021986,2]
[321404533,1712143832470,-1363.79798083,0.00021986,2]
[321404534,1712143832480,-155.0,0.00021986,2]
[321404535,1712143832489,-1056.94779048,0.00021987,2]
[321404536,1712143832500,-605.6024542,0.00021988,2]
[321404537,1712143832509,-2638.94270214,0.000233,2]
[321404538,1712143832518,-18187.95869355,0.00023394,2]
[321404539,1712143832597,-360.78545957,0.00023394,2]
[321404540,1712143832609,-394.2,0.00023394,2]
[321404541,1712143832620,-1296.86489215,0.00023394,2]
[321404542,1712143832633,-1809.97452777,0.00023394,2]
[321404543,1712143832690,-656.98633,0.00023394,2]
[321404544,1712143832767,-994.06607205,0.00023394,2]
[321404545,1712143832779,-315.0,0.00023394,2]
[321404546,1712143832802,-621.77146932,0.00023394,2]
[321404547,1712143832814,-1179.6499085,0.00023394,2]
[321404548,1712143832826,-450.25,0.00023394,2]
[321404568,1712143837844,-300.0,0.000232,2]
[321404569,1712143837855,-915703.60743502,0.00023394,2]
[321404570,1712143837865,-42449.76790175,0.00023394,2]
[321404571,1712143837874,-1465.18,0.00023418,2]
[321404572,1712143837884,-250.0,0.00023449,2]
[321404573,1712143837894,-1939.18,0.00023458,2]
[321404574,1712143837904,-250.0,0.00023464,2]
[321404575,1712143837914,-187.42,0.00023469,2]
[321404576,1712143837927,-640.0,0.00023474,2]
[321404577,1712143837940,-1925.62681118,0.0002354,2]
[321404578,1712143837951,-166.6,0.00023642,2]
[321404579,1712143837961,-435.93,0.0002382,2]
[321404580,1712143837972,-556.02,0.00024102,2]
[321404581,1712143837984,-499.99,0.00024102,2]
[321404582,1712143837994,-556.02,0.00024109,2]
[321404583,1712143838004,-556.02,0.00024115,2]
[321404584,1712143838014,-556.02,0.00024121,2]
[321404585,1712143838024,-556.02,0.00024128,2]
[321404586,1712143838035,-556.02,0.00024134,2]
[321404587,1712143838045,-556.02,0.0002414,2]
[321404588,1712143838054,-556.02,0.00024147,2]
[321404589,1712143838064,-556.02,0.00024153,2]
[321404590,1712143838074,-556.02,0.00024159,2]
[321404591,1712143838084,-556.02,0.00024166,2]
[321404592,1712143838095,-150.33,0.00024169,2]
[321404593,1712143838105,-556.02,0.00024172,2]
[321404594,1712143838115,-556.02,0.00024178,2]
[321404595,1712143838125,-556.02,0.00024185,2]
[321404596,1712143838135,-556.02,0.00024191,2]
[321404597,1712143838145,-556.02,0.00024198,2]
[321404598,1712143838156,-556.02,0.00024204,2]
[321404599,1712143838166,-556.02,0.0002421,2]
[321404600,1712143838175,-556.02,0.00024217,2]
[321404601,1712143838185,-556.02,0.00024223,2]
[321404602,1712143838197,-360.0,0.00024352,2]
[321404603,1712143838207,-153.19616599,0.000247,2]
[321404604,1712143838216,-363.69294346,0.00024772,2]
[321404605,1712143838226,-500.0,0.000248,2]
[321404606,1712143838237,-157.2,0.00024818,2]
[321404607,1712143838248,-166.6,0.00024874,2]
[321404608,1712143838258,-1767.0071,0.00024898,2]
[321404610,1712143838268,-50478.1335,0.00024898,2]
[321404612,1712143838280,-28064.20432399,0.000249,2]
[321404614,1712143838289,-1153.36481843,0.000249,2]
[321404616,1712143838299,-7486.46165582,0.000249,2]
[321404618,1712143838309,-151.5882583,0.000249,2]
[321404620,1712143838319,-334.87847915,0.000249,2]
[321404622,1712143838329,-7500.0,0.000249,2]
[321404624,1712143838339,-343.10938847,0.00024998,2]
[321404626,1712143838349,-801.02886436,0.00024998,2]
[321404628,1712143838359,-348.31798547,0.00024998,2]
[321404630,1712143838369,-164.17090956,0.00024998,2]
[321404632,1712143838379,-357.18726612,0.00024998,2]
[321404634,1712143838389,-3481.17120458,0.00024998,2]
[321404636,1712143838399,-234.9675687,0.00024998,2]
[321404638,1712143838408,-236.76144755,0.00024998,2]
[321404640,1712143838418,-157.23724697,0.00024998,2]
[321404642,1712143838427,-17540.75202987,0.00024998,2]
[321404644,1712143838436,-155.65491139,0.00024998,2]
[321404646,1712143838447,-3623.81118442,0.00024998,2]
[321404648,1712143838456,-155.0,0.00024998,2]
[321404650,1712143838466,-156.62298793,0.00024998,2]
[321404652,1712143838477,-222.14993865,0.00024999,2]
[321404654,1712143838487,-806.45588401,0.00024999,2]
[321404656,1712143838497,-50000.0,0.00025,2]
[321404658,1712143838508,-50000.0,0.00025,2]
[321404660,1712143838518,-50000.0,0.00025,2]
[321404662,1712143838527,-50000.0,0.00025,2]
[321404664,1712143838537,-50000.0,0.00025,2]
[321404666,1712143838547,-50000.0,0.00025,2]
[321404668,1712143838560,-50000.0,0.00025,2]
[321404670,1712143838569,-50000.0,0.00025,2]
[321404672,1712143838579,-202378.71704363,0.00025,2]
[321404674,1712143838589,-187128.41373089,0.00025,2]
[321404686,1712143838697,-0.04791441,0.00025,2]
[321404692,1712143838749,-548.16008,0.00025,2]
[321404693,1712143838805,-26296.8309825,0.00025,2]
[321404694,1712143838850,-65897.00000001,0.00025,2]
[321404703,1712143842576,-638.6772559,0.00025,2]
[321404714,1712143842799,-1000.0101,0.00025,2]
[321404716,1712143842811,-1001.0778848,0.00025,2]
[321404719,1712143842822,-1001.2650704,0.00025,2]
[321404721,1712143842833,-501.6698596,0.00025,2]
[321404723,1712143842845,-502.6413364,0.00025,2]
[321404725,1712143842857,-4620.10829215,0.00025,2]
[321404731,1712143842998,-5115.30747967,0.00025,2]
[321404732,1712143843010,-2807.25761339,0.00025,2]
[321404733,1712143843363,-2122.75657493,0.00025,2]
[321404736,1712143845851,-950.58992929,0.00022224,2]
[321404737,1712143845861,-1131.74605712,0.00023394,2]
[321404738,1712143845871,-24598.80821803,0.00023394,2]
[321404739,1712143845880,-291.74027277,0.00023394,2]
[321404740,1712143845890,-155.59350521,0.00024999,2]
[321404741,1712143845899,-769.79879838,0.00024999,2]
[321404742,1712143845909,-201.53404411,0.00024999,2]
[321404743,1712143845919,-1059.26911925,0.00024999,2]
[321404744,1712143845929,-932.19832907,0.00024999,2]
[321404745,1712143845938,-35559.72172674,0.00025,2]
[321404746,1712143846297,-863.44420511,0.00023394,2]
[321404747,1712143846307,-730985.50018972,0.00025,2]
[321404748,1712144349040,550.0,0.00025,3]
[321404749,1712144357276,1500.0,0.0002294,5]
[321404750,1712144486482,156.29768644,0.000399,48]
[321404751,1712144510343,361.0881052,0.00020919,2]
[321404752,1712144510364,51.7518948,0.00020919,2]
[321404753,1712144858571,253.01745718,0.00022166,5]
[321404754,1712144858596,1246.98254282,0.00022166,5]
[321404756,1712144968116,-155.0,0.0002214,2]
[321404757,1712144968137,-165.5544226,0.0002214,2]
[321404758,1712144968157,-324.64529734,0.00022141,2]
[321404759,1712144968178,-212.13806222,0.00022146,2]
[321404760,1712144970125,-6082.77931571,0.00022146,2]
[321404761,1712145026540,309.3362104,0.00020347,2]
[321404762,1712145026562,82.8537896,0.00020347,2]
[321404788,1712145031965,-153.19839526,0.00022142,2]
[321404789,1712145031974,-262.47530474,0.00022146,2]
[321404797,1712145037962,-1477.74731733,0.00022146,2]
[321404798,1712145037972,-250.0,0.00022242,2]
[321404799,1712145037982,-488.0,0.00022242,2]
[321404800,1712145037992,-921.52210936,0.00022264,2]
[321404801,1712145038071,-930.89789064,0.00022264,2]
[321404802,1712145038081,-250.0,0.00022268,2]
[321404803,1712145038091,-153.19839524,0.00022487,2]
[321404804,1712145038101,-1292.11,0.00022535,2]
[321404805,1712145038111,-200.0,0.00022557,2]
[321404806,1712145038120,-392.19,0.0002261,2]
[321404807,1712145038129,-1220.98,0.00022638,2]
[321404808,1712145038139,-500.0,0.00022689,2]
[321404809,1712145038148,-407.09296923,0.00022692,2]
[321404810,1712145038157,-151.78,0.00022726,2]
[321404811,1712145038168,-151.78,0.0002281,2]
[321404812,1712145038177,-499.99,0.0002281,2]
[321404813,1712145038187,-1434.61,0.0002281,2]
[321404814,1712145038196,-153.19839524,0.00022832,2]
[321404815,1712145038206,-512.0,0.00022887,2]
[321404816,1712145038215,-151.78,0.00022895,2]
[321404817,1712145038225,-151.78,0.0002298,2]
[321404818,1712145038235,-151.78,0.00023064,2]
[321404819,1712145038244,-151.78,0.00023149,2]
[321404820,1712145038253,-1621.16,0.00023174,2]
[321404821,1712145038264,-153.19839524,0.00023176,2]
[321404822,1712145038273,-151.78,0.00023233,2]
[321404823,1712145038282,-6737.81549022,0.00023294,2]
[321404824,1712145038291,-151.78,0.00023318,2]
[321404825,1712145038300,-327.91034225,0.00023392,2]
[321404826,1712145038310,-155.9241748,0.00023392,2]
[321404827,1712145038319,-272.43421619,0.00023392,2]
[321404828,1712145038328,-155.0,0.00023392,2]
[321404829,1712145038338,-434.1862681,0.00023392,2]
[321404830,1712145038347,-357.57162506,0.00023393,2]
[321404831,1712145038357,-20100.79242508,0.00023394,2]
[321404832,1712145038366,-7893.2534914,0.00023394,2]
[321404833,1712145038376,-23821.25687811,0.00023394,2]
[321404834,1712145038389,-724.88233954,0.00023394,2]
[321404835,1712145038401,-1711.50156949,0.00023394,2]
[321404836,1712145038413,-363.25872601,0.00023394,2]
[321404837,1712145038442,-2549.88451112,0.00023394,2]
[321404838,1712145038457,-2333.36605109,0.00023394,2]
[321404839,1712145038468,-3217.77514072,0.00023394,2]
[321404840,1712145038481,-2836.74479185,0.00023394,2]
[321404844,1712145040100,-1028.443,0.00023394,2]
[321404845,1712145040112,-642.18873986,0.00023394,2]
[321404846,1712145040207,-938.83557992,0.00023394,2]
[321404847,1712145040219,-2316.25594233,0.00023394,2]
[321404898,1712145043348,-9435.23908728,0.00023394,2]
[321404899,1712145043406,-2993.55077993,0.00023394,2]
[321404906,1712145046061,-119043.02734768,0.00023394,2]
[321404907,1712145046282,-89021.06028292,0.00023394,2]
[321404913,1712145175640,155.0,0.00021053,2]
[321404914,1712145341000,579.86,0.00022864,5]
[321404915,1712145502032,2120.33,0.0004,30]
[321404917,1712145613167,123.2343156,0.00020839,2]
[321404918,1712145613192,229.7356844,0.00020839,2]
[321404919,1712146209178,335.32,0.00020767,2]
[321404939,1712146232226,-461.47829891,0.00022038,2]
[321404996,1712146238497,-828.06281912,0.00022038,2]
[321404997,1712146238506,-500.0,0.00022038,2]
[321404998,1712146238516,-1700.33667058,0.00022039,2]
[321404999,1712146238528,-1262.20963827,0.00022039,2]
[321405000,1712146238538,-150.0,0.00022221,2]
[321405001,1712146238548,-1196.27057008,0.00022222,2]
[321405002,1712146238558,-360.79,0.00022439,2]
[321405003,1712146238568,-250.0,0.00022458,2]
[321405004,1712146238578,-150.33,0.00022471,2]
[321405005,1712146238589,-860.73,0.00022622,2]
[321405006,1712146238599,-168.85,0.00022656,2]
[321405007,1712146238608,-499.99,0.00022656,2]
[321405008,1712146238618,-390.4,0.00022688,2]
[321405009,1712146238627,-1017.48,0.00022742,2]
[321405010,1712146238637,-452.70279165,0.00022788,2]
[321405011,1712146238650,-156.89720835,0.00022788,2]
[321405013,1712146238660,-151.78,0.00022855,2]
[321405014,1712146238670,-335.32,0.00023031,2]
[321405015,1712146238680,-151.78,0.00023054,2]
[321405016,1712146238689,-250.61030553,0.00023158,2]
[321405017,1712146238699,-605.98815,0.0002316,2]
[321405018,1712146238708,-151.78,0.00023252,2]
[321405020,1712146238717,-376.16,0.00023364,2]
[321405021,1712146238726,-376.16,0.0002337,2]
[321405022,1712146238736,-376.16,0.00023376,2]
[321405023,1712146238746,-376.16,0.00023382,2]
[321405024,1712146238755,-376.16,0.00023388,2]
[321405025,1712146238766,-330.57731477,0.00023392,2]
[321405026,1712146238775,-2325.29217611,0.00023392,2]
[321405027,1712146238791,-279.39887565,0.00023392,2]
[321405028,1712146238804,-234.33664441,0.00023392,2]
[321405029,1712146238814,-235.01017711,0.00023392,2]
[321405030,1712146238825,-155.21103832,0.00023392,2]
[321405031,1712146238836,-1708.58707502,0.00023392,2]
[321405032,1712146238844,-3188.35003257,0.00023392,2]
[321405033,1712146238864,-969.46683418,0.00023392,2]
[321405034,1712146238874,-243.0158793,0.00023392,2]
[321405035,1712146238884,-232.34125266,0.00023392,2]
[321405036,1712146238893,-9253.7008142,0.00023392,2]
[321405037,1712146238903,-156.22455142,0.00023392,2]
[321405038,1712146238913,-169.5396572,0.00023392,2]
[321405039,1712146238923,-175.69672673,0.00023392,2]
[321405040,1712146238932,-843.46695987,0.00023392,2]
[321405041,1712146238942,-260.47354147,0.00023392,2]
[321405042,1712146238951,-2258.59066381,0.00023392,2]
[321405043,1712146238961,-387.03857533,0.00023392,2]
[321405044,1712146238970,-175.8339671,0.00023392,2]
[321405045,1712146238980,-374.33033164,0.00023392,2]
[321405046,1712146238990,-3071.96048349,0.00023393,2]
[321405047,1712146239000,-82389.46272186,0.00023394,2]
[321405048,1712146239011,-939.83288273,0.00023394,2]
[321405049,1712146239021,-364.48555309,0.00023394,2]
[321405050,1712146239031,-155.0,0.00023394,2]
[321405051,1712146239041,-7532.80266147,0.00023394,2]
[321405052,1712146239050,-188.12428793,0.00023394,2]
[321405053,1712146239059,-376.16,0.00023395,2]
[321405054,1712146239070,-376.16,0.00023401,2]
[321405055,1712146239080,-376.16,0.00023407,2]
[321405056,1712146239092,-376.16,0.00023413,2]
[321405057,1712146239102,-376.16,0.00023419,2]
[321405058,1712146239111,-376.16,0.00023425,2]
[321405059,1712146239120,-376.16,0.00023431,2]
[321405060,1712146239129,-376.16,0.00023438,2]
[321405061,1712146239139,-376.16,0.00023444,2]
[321405062,1712146239148,-376.16,0.0002345,2]
[321405063,1712146239158,-151.78,0.00023451,2]
[321405064,1712146239167,-376.16,0.00023456,2]
[321405065,1712146239177,-376.16,0.00023462,2]
[321405066,1712146239186,-376.16,0.00023468,2]
[321405067,1712146239195,-376.16,0.00023474,2]
[321405068,1712146239205,-376.16,0.00023481,2]
[321405069,1712146239214,-151.78,0.00023649,2]
[321405070,1712146239224,-151.78,0.00023848,2]
[321405071,1712146239234,-151.78,0.00024046,2]
[321405072,1712146239243,-1926.21593377,0.00024483,2]
[321405073,1712146239253,-1637.40841269,0.00024484,2]
[321405074,1712146239262,-2087.8066,0.000245,2]
[321405075,1712146239272,-155.0,0.00024529,2]
[321405076,1712146239281,-1637.40841267,0.0002453,2]
[321405077,1712146239294,-1637.40841267,0.00024576,2]
[321405078,1712146239304,-1000.0,0.00024584,2]
[321405079,1712146239314,-1623.0,0.00024584,2]
[321405080,1712146239323,-2410.0,0.00024584,2]
[321405081,1712146239334,-206.0,0.00024584,2]
[321405082,1712146239343,-213.57693224,0.00024584,2]
[321405083,1712146239356,-3.42306776,0.00024584,2]
[321405084,1712146239365,-300.001,0.00024584,2]
[321405085,1712146239375,-6309.2946574,0.00024584,2]
[321405086,1712146239399,-746.89027862,0.00024584,2]
[321405088,1712146240317,-273.13040831,0.00024584,2]
[321405089,1712146240376,-2758.11352494,0.00024584,2]
[321405090,1712146240438,-6618.2,0.00024584,2]
[321405091,1712146240450,-26376.37113073,0.00024584,2]
[321405092,1712146240460,-14149.5746,0.000246,2]
[321405093,1712146240470,-1637.40841267,0.00024623,2]
[321405094,1712146240479,-1637.40841267,0.00024669,2]
[321405095,1712146240488,-170.45,0.00024688,2]
[321405096,1712146240498,-40333.80528544,0.00024698,2]
[321405097,1712146240514,-2111.44906797,0.00024698,2]
[321405098,1712146240560,-328.07076001,0.00024698,2]
[321405118,1712146246226,-26597.63288658,0.00024698,2]
[321405119,1712146246235,-743.7063,0.00024698,2]
[321405120,1712146246245,-4178.9773,0.000247,2]
[321405121,1712146246254,-3689.6838,0.000247,2]
[321405122,1712146246263,-1637.40841267,0.00024715,2]
[321405123,1712146246272,-1637.40841267,0.00024761,2]
[321405124,1712146246281,-34681.4371,0.00024798,2]
[321405125,1712146246291,-3817.2553,0.000248,2]
[321405126,1712146246301,-365.5388,0.000248,2]
[321405127,1712146246312,-36113.21834468,0.000248,2]
[321405128,1712146246416,-4988.1819494,0.000248,2]
[321405131,1712146255101,155.0,0.0002,2]
[321405132,1712146256730,556.35993677,0.00020214,2]
[321405136,1712146609305,102439.0,0.0004,30]
[321405137,1712146822496,-187.49849639,0.00021838,2]
[321405138,1712146822518,-1289.54111803,0.00021937,2]
[321405139,1712146822539,-522.96038558,0.00021938,2]
[321405140,1712146823100,-1746.78791442,0.00021938,2]
[321405141,1712146823125,-253.21208558,0.00021963,2]
[321405142,1712146823349,-90.16791442,0.00021963,2]
[321405143,1712146823378,-847.9,0.00023823,2]
[321405144,1712146823401,-573.48,0.00023881,2]
[321405145,1712146823424,-174.21,0.00023954,2]
[321405146,1712146823446,-174.21,0.00024014,2]
[321405147,1712146823468,-140.03208558,0.00024074,2]
[321405148,1712146823821,-34.17791442,0.00024074,2]
[321405149,1712146823846,-343.38,0.00024227,2]
[321405150,1712146823870,-1622.44208558,0.00024484,2]
[321405151,1712146824288,-2000.0,0.00024484,2]
[321405152,1712146824762,-2000.0,0.00024484,2]
[321405153,1712146825272,-219.51351442,0.00024484,2]
[321405154,1712146825294,-1780.48648558,0.000245,2]
[321405155,1712146825778,-2000.0,0.000245,2]
[321405156,1712146826220,-2000.0,0.000245,2]
[321405157,1712146826718,-2000.0,0.000245,2]
[321405158,1712146827188,-2000.0,0.000245,2]
[321405159,1712146827699,-2000.0,0.000245,2]
[321405160,1712146828377,-2000.0,0.000245,2]
[321405161,1712146828945,-2000.0,0.000245,2]
[321405162,1712146829412,-2000.0,0.000245,2]
[321405163,1712146831848,-583.28049695,0.000245,2]
[321405164,1712146831870,-1000.0,0.000245,2]
[321405165,1712146836135,155.0,0.000245,2]
[321405166,1712146861306,261.71950305,0.00023653,2]
[321405167,1712147246124,-309.04,0.00021714,2]
[321405168,1712147246144,-72.09767216,0.0002247,2]
[321405177,1712147433428,-1152.28631474,0.00021346,2]
[321405178,1712147433440,-137.25480329,0.00021346,2]
[321405180,1712147433450,-950.86224971,0.00021347,2]
[321405182,1712147433460,-1069.69965144,0.00023553,2]
[321405183,1712147433472,-938.15124856,0.00023553,2]
[321405184,1712147433482,-150.33,0.00023632,2]
[321405197,1712147433713,-436.18,0.00023823,2]
[321405198,1712147433722,-1000.0,0.00023865,2]
[321405199,1712147433731,-309.04,0.00023978,2]
[321405200,1712147433742,-153.4,0.00024041,2]
[321405201,1712147433751,-463.633,0.000244,2]
[321405202,1712147433760,-277.0,0.00024499,2]
[321405203,1712147433769,-24277.80807464,0.000245,2]
[321405204,1712147433778,-499.99,0.00024698,2]
[321405205,1712147433788,-1301.72,0.00024698,2]
[321405206,1712147433797,-1597.33095545,0.0002479,2]
[321405207,1712147433806,-491.2225238,0.00024799,2]
[321405208,1712147433815,-5356.43213017,0.00024799,2]
[321405209,1712147433825,-295.55986713,0.00024799,2]
[321405210,1712147433834,-500.0,0.000248,2]
[321405211,1712147433844,-504.99013,0.000248,2]
[321405212,1712147433854,-8915.80030226,0.000248,2]
[321405213,1712147433864,-150.79765478,0.000248,2]
[321405214,1712147433873,-8915.8003022,0.00024811,2]
[321405215,1712147433882,-491.2225238,0.00024811,2]
[321405216,1712147433896,-150.79765476,0.00024814,2]
[321405217,1712147433906,-8915.8003022,0.00024822,2]
[321405218,1712147433916,-491.2225238,0.00024824,2]
[321405219,1712147433925,-150.79765476,0.00024829,2]
[321405220,1712147433935,-195.01530297,0.00024833,2]
[321405224,1712147438398,-346.49127393,0.00024833,2]
[321405225,1712147438497,-1033.21403117,0.00024833,2]
[321405226,1712147438553,-7341.07969413,0.00024833,2]
[321405227,1712147438563,-491.2225238,0.00024837,2]
[321405228,1712147438572,-150.79765476,0.00024843,2]
[321405229,1712147438582,-8915.8003022,0.00024844,2]
[321405230,1712147438591,-491.2225238,0.00024849,2]
[321405231,1712147438600,-8915.8003022,0.00024856,2]
[321405232,1712147438610,-150.79765476,0.00024857,2]
[321405233,1712147438619,-491.2225238,0.00024862,2]
[321405234,1712147438628,-8915.8003022,0.00024867,2]
[321405235,1712147438638,-491.2225238,0.00024875,2]
[321405238,1712147438867,-7933.45812312,0.00024878,2]
[321405240,1712147438880,-982.34217908,0.00024878,2]
[321405241,1712147438891,-566.06410222,0.0002488,2]
[321405242,1712147438902,-1029.99995,0.0002488,2]